[Event "Live Chess"]
[Site "Chess.com"]
[Date "2024.06.02"]
[Round "-"]
[White "PureDashingOctopus"]
[Black "ZatixMajor"]
[Result "0-1"]
[WhiteElo "2276"]
[BlackElo "2045"]
[TimeControl "300"]
[EndTime "5:21:01 PDT"]
[Termination "ZatixMajor won on time"]

1. e4 {[%clk 0:04:58.6]} 1... c5 {[%clk 0:04:59.5]} 2. Nc3 {[%clk 0:04:56.8]}
2... Nc6 {[%clk 0:04:56.8]} 3. Nf3 {[%clk 0:04:54.2]} 3... g6 {[%clk 0:04:56.4]}
4. Bb5 {[%clk 0:04:52.3]} 4... Nd4 {[%clk 0:04:53.6]} 5. Nxd4 {[%clk 0:04:50.7]}
5... cxd4 {[%clk 0:04:53.5]} 6. Ne2 {[%clk 0:04:49.7]} 6... Nf6 {[%clk
0:04:52.9]} 7. e5 {[%clk 0:04:48]} 7... Ng4 {[%clk 0:04:48.7]} 8. Nxd4 {[%clk
0:04:46.8]} 8... Nxe5 {[%clk 0:04:47.7]} 9. Be2 {[%clk 0:04:44.9]} 9... Bg7
{[%clk 0:04:46.3]} 10. O-O {[%clk 0:04:43.6]} 10... O-O {[%clk 0:04:43.9]} 11.
c3 {[%clk 0:04:42.1]} 11... b6 {[%clk 0:04:40.9]} 12. Nf3 {[%clk 0:04:41.3]}
12... Nc6 {[%clk 0:04:39.3]} 13. d4 {[%clk 0:04:40.2]} 13... Bb7 {[%clk
0:04:38.5]} 14. d5 {[%clk 0:04:38.9]} 14... Ne5 {[%clk 0:04:37]} 15. Bf4 {[%clk
0:04:37.5]} 15... Nxf3+ {[%clk 0:04:34.9]} 16. Bxf3 {[%clk 0:04:37.4]} 16... d6
{[%clk 0:04:32.4]} 17. Re1 {[%clk 0:04:35.9]} 17... Rc8 {[%clk 0:04:31.5]} 18.
Qe2 {[%clk 0:04:33.3]} 18... Re8 {[%clk 0:04:28.7]} 19. Bg5 {[%clk 0:04:30.8]}
19... Rc7 {[%clk 0:04:26.8]} 20. h4 {[%clk 0:04:24.4]} 20... h6 {[%clk
0:04:24.7]} 21. Be3 {[%clk 0:04:22.8]} 21... e6 {[%clk 0:04:23.4]} 22. Qd2
{[%clk 0:04:19.9]} 22... Qxh4 {[%clk 0:04:19]} 23. dxe6 {[%clk 0:04:12.9]} 23...
Bxf3 {[%clk 0:04:11.3]} 24. exf7+ {[%clk 0:03:56.8]} 24... Rxf7 {[%clk
0:04:11.2]} 25. gxf3 {[%clk 0:03:55.6]} 25... Be5 {[%clk 0:03:58.1]} 26. f4
{[%clk 0:03:52]} 26... Bxf4 {[%clk 0:03:42.1]} 27. Bxf4 {[%clk 0:03:48.9]} 27...
Rxe1+ {[%clk 0:03:41.7]} 28. Rxe1 {[%clk 0:03:46.9]} 28... Rxf4 {[%clk
0:03:41.3]} 29. Qd5+ {[%clk 0:03:14.6]} 29... Kg7 {[%clk 0:03:34.9]} 30. Qb7+
{[%clk 0:03:08.4]} 30... Kf6 {[%clk 0:03:33.7]} 31. Qe7+ {[%clk 0:02:59.2]}
31... Kf5 {[%clk 0:03:31.5]} 32. Qxh4 {[%clk 0:02:02.8]} 32... Rxh4 {[%clk
0:03:30.3]} 33. Re7 {[%clk 0:02:00.9]} 33... Ra4 {[%clk 0:02:59.4]} 34. a3
{[%clk 0:01:56.8]} 34... g5 {[%clk 0:02:51.7]} 35. Rd7 {[%clk 0:01:53.2]} 35...
Rg4+ {[%clk 0:02:35.5]} 36. Kf1 {[%clk 0:01:48.3]} 36... h5 {[%clk 0:02:24.8]}
37. Rxa7 {[%clk 0:01:44.4]} 37... h4 {[%clk 0:02:19.1]} 38. Rd7 {[%clk
0:01:24.8]} 38... h3 {[%clk 0:02:11.9]} 39. Rxd6 {[%clk 0:01:16.1]} 39... h2
{[%clk 0:02:10.4]} 40. Rh6 {[%clk 0:01:11.3]} 40... Re4 {[%clk 0:01:54.1]} 41.
Rxh2 {[%clk 0:01:04.7]} 41... Re5 {[%clk 0:01:52.8]} 42. Rh6 {[%clk 0:01:00.5]}
42... Rb5 {[%clk 0:01:49.6]} 43. b4 {[%clk 0:00:58.6]} 43... Ke4 {[%clk
0:01:48.2]} 44. a4 {[%clk 0:00:50.9]} 44... Rd5 {[%clk 0:01:45]} 45. Rxb6 {[%clk
0:00:50.2]} 45... Kd3 {[%clk 0:01:42.3]} 46. Rc6 {[%clk 0:00:47.8]} 46... Ke4
{[%clk 0:01:35.4]} 47. a5 {[%clk 0:00:43.8]} 47... g4 {[%clk 0:01:34.8]} 48.
Rc4+ {[%clk 0:00:33.7]} 48... Kf3 {[%clk 0:01:32.6]} 49. Rd4 {[%clk 0:00:28.9]}
49... Re5 {[%clk 0:01:29.1]} 50. a6 {[%clk 0:00:25.1]} 50... Rh5 {[%clk
0:01:20.4]} 51. Rd3+ {[%clk 0:00:22]} 51... Ke4 {[%clk 0:01:19.5]} 52. Re3+
{[%clk 0:00:21.4]} 52... Kf4 {[%clk 0:01:17.6]} 53. a7 {[%clk 0:00:20.4]} 53...
Rh8 {[%clk 0:01:16.6]} 54. b5 {[%clk 0:00:19.3]} 54... Rd8 {[%clk 0:01:15.1]}
55. b6 {[%clk 0:00:17.8]} 55... g3 {[%clk 0:01:13.4]} 56. Rxg3 {[%clk
0:00:14.6]} 56... Rd1+ {[%clk 0:01:10.6]} 57. Ke2 {[%clk 0:00:13.6]} 57... Rb1
{[%clk 0:01:10.5]} 58. a8=Q {[%clk 0:00:11.7]} 58... Rb2+ {[%clk 0:01:09.6]} 59.
Kf1 {[%clk 0:00:10.5]} 59... Rb1+ {[%clk 0:01:08.7]} 60. Kg2 {[%clk 0:00:09.4]}
60... Rb2 {[%clk 0:01:08.2]} 61. Qf8+ {[%clk 0:00:07.8]} 61... Ke5 {[%clk
0:01:08.1]} 62. Re3+ {[%clk 0:00:07]} 62... Kd5 {[%clk 0:01:08]} 63. Qd8+ {[%clk
0:00:05.7]} 63... Kc6 {[%clk 0:01:07.1]} 64. Re6+ {[%clk 0:00:05.3]} 64... Kb7
{[%clk 0:01:06]} 65. Qc7+ {[%clk 0:00:04.4]} 65... Ka6 {[%clk 0:01:04.6]} 66.
Re5 {[%clk 0:00:03.8]} 66... Rxf2+ {[%clk 0:01:03.5]} 67. Kg3 {[%clk 0:00:01]}
67... Ra2 {[%clk 0:00:58.4]} 0-1

[Event "Live Chess"]
[Site "Chess.com"]
[Date "2024.06.02"]
[Round "-"]
[White "MagnersCarlsberg2870"]
[Black "road2gm5000"]
[Result "1-0"]
[WhiteElo "1768"]
[BlackElo "1130"]
[TimeControl "300"]
[EndTime "5:21:02 PDT"]
[Termination "MagnersCarlsberg2870 won by resignation"]

1. d4 {[%clk 0:04:58.1]} 1... d5 {[%clk 0:04:57.9]} 2. e3 {[%clk 0:04:56.3]}
2... Nc6 {[%clk 0:04:55.6]} 3. Bd3 {[%clk 0:04:53.3]} 3... Nf6 {[%clk
0:04:52.6]} 4. Nd2 {[%clk 0:04:48.3]} 4... Bg4 {[%clk 0:04:51.2]} 5. f3 {[%clk
0:04:47.1]} 5... Bh5 {[%clk 0:04:47.4]} 6. Ne2 {[%clk 0:04:46.3]} 6... Bg6
{[%clk 0:04:46.9]} 7. Nf4 {[%clk 0:04:45]} 7... Bxd3 {[%clk 0:04:45.6]} 8. Nxd3
{[%clk 0:04:44]} 8... e6 {[%clk 0:04:44.9]} 9. c3 {[%clk 0:04:42.1]} 9... Bd6
{[%clk 0:04:44.3]} 10. Qe2 {[%clk 0:04:40.3]} 10... O-O {[%clk 0:04:41.2]} 11.
e4 {[%clk 0:04:39.4]} 11... dxe4 {[%clk 0:04:39.2]} 12. fxe4 {[%clk 0:04:38.4]}
12... Be7 {[%clk 0:04:36.1]} 13. e5 {[%clk 0:04:37.2]} 13... Nd5 {[%clk
0:04:34.9]} 14. Nf3 {[%clk 0:04:34.9]} 14... Bh4+ {[%clk 0:04:17.8]} 15. g3
{[%clk 0:04:32.1]} 15... Be7 {[%clk 0:04:15.4]} 16. O-O {[%clk 0:04:31]} 16...
Qd7 {[%clk 0:04:09.6]} 17. Qe4 {[%clk 0:04:26.5]} 17... g6 {[%clk 0:03:58.8]}
18. Bh6 {[%clk 0:04:23.1]} 18... Rfe8 {[%clk 0:03:56.7]} 19. Bg5 {[%clk
0:04:19]} 19... Bxg5 {[%clk 0:03:52.8]} 20. Nxg5 {[%clk 0:04:17.7]} 20... Qe7
{[%clk 0:03:50.9]} 21. Qh4 {[%clk 0:04:12.3]} 21... h5 {[%clk 0:03:46.6]} 22.
Rxf7 {[%clk 0:04:01.2]} 22... Qxf7 {[%clk 0:03:37.9]} 23. Nxf7 {[%clk 0:04:00]}
23... Kxf7 {[%clk 0:03:37.8]} 24. Rf1+ {[%clk 0:03:58.4]} 24... Kg7 {[%clk
0:03:34]} 25. c4 {[%clk 0:03:47.9]} 25... Ne3 {[%clk 0:03:30.9]} 26. Qf6+ {[%clk
0:03:45.4]} 26... Kh7 {[%clk 0:03:27.4]} 27. Qf7+ {[%clk 0:03:44.1]} 27... Kh6
{[%clk 0:03:26.5]} 28. Qf4+ {[%clk 0:03:38.7]} 28... Kh7 {[%clk 0:03:24.1]} 29.
Qxe3 {[%clk 0:03:37.7]} 1-0

[Event "Live Chess"]
[Site "Chess.com"]
[Date "2024.06.02"]
[Round "-"]
[White "matt1979"]
[Black "ameetghasi100"]
[Result "0-1"]
[WhiteElo "1409"]
[BlackElo "2766"]
[TimeControl "300"]
[EndTime "5:21:12 PDT"]
[Termination "ameetghasi100 won by resignation"]

1. f4 {[%clk 0:04:58.7]} 1... d5 {[%clk 0:04:57.9]} 2. e3 {[%clk 0:04:57.6]}
2... c6 {[%clk 0:04:57.7]} 3. Nf3 {[%clk 0:04:55]} 3... Bg4 {[%clk 0:04:56.4]}
4. d4 {[%clk 0:04:52.4]} 4... Nd7 {[%clk 0:04:55.5]} 5. Bd3 {[%clk 0:04:51.5]}
5... Ngf6 {[%clk 0:04:54.9]} 6. c3 {[%clk 0:04:50.2]} 6... e6 {[%clk 0:04:53.9]}
7. O-O {[%clk 0:04:48.9]} 7... Bd6 {[%clk 0:04:52.3]} 8. Qe1 {[%clk 0:04:45.3]}
8... h5 {[%clk 0:04:51.1]} 9. Ne5 {[%clk 0:04:44.1]} 9... Bf5 {[%clk 0:04:50.2]}
10. Bxf5 {[%clk 0:04:41]} 10... exf5 {[%clk 0:04:48.5]} 11. Qg3 {[%clk
0:04:36.8]} 11... g6 {[%clk 0:04:47.2]} 12. Nxg6 {[%clk 0:04:27.8]} 12... Rg8
{[%clk 0:04:46.2]} 13. Qg5 {[%clk 0:04:11.1]} 13... fxg6 {[%clk 0:04:42.1]} 14.
Nd2 {[%clk 0:04:02.5]} 14... Ng4 {[%clk 0:04:30.2]} 15. Qxd8+ {[%clk 0:03:56.4]}
15... Kxd8 {[%clk 0:04:29.4]} 16. Nf3 {[%clk 0:03:49.1]} 16... Ngf6 {[%clk
0:04:29.3]} 17. Ne5 {[%clk 0:03:47.3]} 17... Kc7 {[%clk 0:04:28.8]} 18. Bd2
{[%clk 0:03:40.9]} 18... Nb6 {[%clk 0:04:28.3]} 19. a4 {[%clk 0:03:37.5]} 19...
Ne4 {[%clk 0:04:27.9]} 20. Be1 {[%clk 0:03:34.4]} 20... Nc4 {[%clk 0:04:27.6]}
0-1

[Event "Live Chess"]
[Site "Chess.com"]
[Date "2024.06.02"]
[Round "-"]
[White "Dhaydon19"]
[Black "bobby_jamesFischer86"]
[Result "1-0"]
[WhiteElo "2640"]
[BlackElo "1624"]
[TimeControl "300"]
[EndTime "5:21:26 PDT"]
[Termination "Dhaydon19 won by resignation"]

1. d4 {[%clk 0:04:58.3]} 1... d5 {[%clk 0:04:57.6]} 2. Nf3 {[%clk 0:04:57.9]}
2... c6 {[%clk 0:04:56.4]} 3. g3 {[%clk 0:04:57.4]} 3... Nf6 {[%clk 0:04:55.6]}
4. Bg2 {[%clk 0:04:57.1]} 4... g6 {[%clk 0:04:54.5]} 5. O-O {[%clk 0:04:56.8]}
5... Bg7 {[%clk 0:04:54]} 6. c3 {[%clk 0:04:56.5]} 6... O-O {[%clk 0:04:51.6]}
7. Nbd2 {[%clk 0:04:53.8]} 7... Nbd7 {[%clk 0:04:51]} 8. Re1 {[%clk 0:04:52.6]}
8... Re8 {[%clk 0:04:50.4]} 9. e4 {[%clk 0:04:52.2]} 9... dxe4 {[%clk
0:04:49.8]} 10. Nxe4 {[%clk 0:04:51.8]} 10... Nxe4 {[%clk 0:04:48.2]} 11. Rxe4
{[%clk 0:04:51.4]} 11... e5 {[%clk 0:04:45.5]} 12. Bg5 {[%clk 0:04:48.2]} 12...
f6 {[%clk 0:04:43.9]} 13. Qb3+ {[%clk 0:04:45]} 13... Kh8 {[%clk 0:04:41.8]} 14.
Bd2 {[%clk 0:04:41.2]} 14... f5 {[%clk 0:04:36.2]} 15. Ng5 {[%clk 0:04:39.7]}
15... Rf8 {[%clk 0:04:18.6]} 16. Ree1 {[%clk 0:04:31.8]} 16... Qe7 {[%clk
0:04:01.3]} 17. dxe5 {[%clk 0:04:29]} 17... Nc5 {[%clk 0:03:46.6]} 18. Qc2
{[%clk 0:04:25.3]} 18... Ne6 {[%clk 0:03:36.2]} 19. Nxe6 {[%clk 0:04:22.9]}
19... Bxe6 {[%clk 0:03:35.2]} 20. f4 {[%clk 0:04:19.3]} 20... Rad8 {[%clk
0:03:33.5]} 21. Be3 {[%clk 0:04:18.4]} 21... b6 {[%clk 0:03:31.8]} 22. Bxc6
{[%clk 0:04:15]} 22... Bd5 {[%clk 0:03:26.5]} 23. Bxd5 {[%clk 0:04:13.8]} 23...
Rxd5 {[%clk 0:03:25.2]} 24. Rad1 {[%clk 0:04:13.5]} 24... Rfd8 {[%clk
0:03:23.7]} 25. Rxd5 {[%clk 0:04:12.3]} 25... Rxd5 {[%clk 0:03:22.7]} 26. Rd1
{[%clk 0:04:12]} 26... Qd7 {[%clk 0:03:11]} 27. Rd4 {[%clk 0:04:09.8]} 27... h6
{[%clk 0:02:55.6]} 28. Qd3 {[%clk 0:04:03.3]} 28... Rxd4 {[%clk 0:02:53.5]} 29.
Bxd4 {[%clk 0:04:02.1]} 29... Qa4 {[%clk 0:02:48.9]} 30. e6 {[%clk 0:03:58.3]}
30... Bxd4+ {[%clk 0:02:33.1]} 31. Qxd4+ {[%clk 0:03:56.1]} 31... Kg8 {[%clk
0:02:31.9]} 32. Qxa4 {[%clk 0:03:54.9]} 1-0

[Event "Live Chess"]
[Site "Chess.com"]
[Date "2024.06.02"]
[Round "-"]
[White "upoe610"]
[Black "Grace6363"]
[Result "1-0"]
[WhiteElo "2143"]
[BlackElo "1142"]
[TimeControl "300"]
[EndTime "5:21:33 PDT"]
[Termination "upoe610 won by checkmate"]

1. e4 {[%clk 0:04:57.7]} 1... c5 {[%clk 0:04:55.3]} 2. d4 {[%clk 0:04:56.4]}
2... cxd4 {[%clk 0:04:51.8]} 3. c3 {[%clk 0:04:56.3]} 3... dxc3 {[%clk
0:04:46.7]} 4. Nxc3 {[%clk 0:04:56.2]} 4... Nc6 {[%clk 0:04:46.2]} 5. Bc4 {[%clk
0:04:53.7]} 5... g6 {[%clk 0:04:45.2]} 6. Nf3 {[%clk 0:04:52.7]} 6... e6 {[%clk
0:04:44.6]} 7. Bg5 {[%clk 0:04:50.9]} 7... Be7 {[%clk 0:04:43.6]} 8. Be3 {[%clk
0:04:49.9]} 8... Nf6 {[%clk 0:04:39.7]} 9. e5 {[%clk 0:04:49.3]} 9... Ng4 {[%clk
0:04:36]} 10. Bf4 {[%clk 0:04:47.2]} 10... f6 {[%clk 0:04:19.6]} 11. h3 {[%clk
0:04:42.4]} 11... Ngxe5 {[%clk 0:04:16.1]} 12. Nxe5 {[%clk 0:04:40.6]} 12...
Nxe5 {[%clk 0:04:15.6]} 13. Bxe5 {[%clk 0:04:38.9]} 13... fxe5 {[%clk
0:04:15.1]} 14. Qe2 {[%clk 0:04:38.1]} 14... Qa5 {[%clk 0:04:06.6]} 15. O-O
{[%clk 0:04:35.4]} 15... d5 {[%clk 0:04:03.3]} 16. Qxe5 {[%clk 0:04:32.1]} 16...
Rf8 {[%clk 0:03:51.1]} 17. Bb5+ {[%clk 0:04:21.9]} 17... Bd7 {[%clk 0:03:38.8]}
18. Bxd7+ {[%clk 0:04:08.7]} 18... Kxd7 {[%clk 0:03:37.8]} 19. Rfd1 {[%clk
0:04:07.5]} 19... Bf6 {[%clk 0:03:33.4]} 20. Qe3 {[%clk 0:03:59.4]} 20... Bxc3
{[%clk 0:03:24.3]} 21. bxc3 {[%clk 0:03:56.3]} 21... Rac8 {[%clk 0:03:10.3]} 22.
Rab1 {[%clk 0:03:54.5]} 22... b6 {[%clk 0:03:07.5]} 23. Re1 {[%clk 0:03:44.6]}
23... Rfe8 {[%clk 0:02:57.5]} 24. Qh6 {[%clk 0:03:42.8]} 24... Re7 {[%clk
0:02:53]} 25. Qg5 {[%clk 0:03:29.7]} 25... Rxc3 {[%clk 0:02:47.6]} 26. Rbd1
{[%clk 0:03:24.5]} 26... Rc5 {[%clk 0:02:38.1]} 27. Re5 {[%clk 0:03:18.8]} 27...
Qxa2 {[%clk 0:02:27.9]} 28. Rde1 {[%clk 0:03:14]} 28... Kd6 {[%clk 0:02:02.7]}
29. Rxe6+ {[%clk 0:02:54.7]} 29... Rxe6 {[%clk 0:02:01.2]} 30. Qd8+ {[%clk
0:02:54.6]} 30... Kc6 {[%clk 0:01:54.9]} 31. Qc8+ {[%clk 0:02:49.2]} 31... Kb5
{[%clk 0:01:50.7]} 32. Qxe6 {[%clk 0:02:48.2]} 32... Qd2 {[%clk 0:01:39]} 33.
Qe8+ {[%clk 0:02:45.9]} 33... Kb4 {[%clk 0:01:24]} 34. Rb1+ {[%clk 0:02:43.2]}
34... Kc3 {[%clk 0:01:19.8]} 35. Qa4 {[%clk 0:02:34.3]} 35... Qc2 {[%clk
0:00:58.5]} 36. Qa3+ {[%clk 0:02:23.1]} 36... Kd2 {[%clk 0:00:53.2]} 37. Qe3#
{[%clk 0:02:20]} 1-0

[Event "Live Chess"]
[Site "Chess.com"]
[Date "2024.06.02"]
[Round "-"]
[White "Andriy_Yaremovych"]
[Black "lateforthesky"]
[Result "0-1"]
[WhiteElo "1629"]
[BlackElo "2051"]
[TimeControl "300"]
[EndTime "5:21:41 PDT"]
[Termination "lateforthesky won by resignation"]

1. e4 {[%clk 0:04:58.7]} 1... c5 {[%clk 0:04:58.1]} 2. Nc3 {[%clk 0:04:58.6]}
2... Nc6 {[%clk 0:04:56]} 3. f4 {[%clk 0:04:58.5]} 3... e6 {[%clk 0:04:53.7]} 4.
Nf3 {[%clk 0:04:58.4]} 4... d5 {[%clk 0:04:52.8]} 5. b3 {[%clk 0:04:58.3]} 5...
d4 {[%clk 0:04:51.2]} 6. Ne2 {[%clk 0:04:57.3]} 6... Nf6 {[%clk 0:04:47.7]} 7.
Ng3 {[%clk 0:04:54.3]} 7... Be7 {[%clk 0:04:45.8]} 8. Bb2 {[%clk 0:04:53]} 8...
O-O {[%clk 0:04:42.2]} 9. d3 {[%clk 0:04:52.1]} 9... a6 {[%clk 0:04:28.1]} 10.
Qd2 {[%clk 0:04:50]} 10... b5 {[%clk 0:04:26.1]} 11. O-O-O {[%clk 0:04:48.5]}
11... a5 {[%clk 0:04:17.5]} 12. h3 {[%clk 0:04:46.9]} 12... a4 {[%clk
0:04:15.3]} 13. Kb1 {[%clk 0:04:45]} 13... axb3 {[%clk 0:04:12.2]} 14. axb3
{[%clk 0:04:44.9]} 14... Qa5 {[%clk 0:04:10.2]} 15. Qxa5 {[%clk 0:04:42.5]}
15... Rxa5 {[%clk 0:04:09.9]} 16. Be2 {[%clk 0:04:37.6]} 16... Bd7 {[%clk
0:04:04.1]} 17. Ng5 {[%clk 0:04:31.6]} 17... Rfa8 {[%clk 0:04:01.8]} 18. h4
{[%clk 0:04:29.6]} 18... Nb4 {[%clk 0:03:50.4]} 19. Rdf1 {[%clk 0:04:23.1]}
19... Na2 {[%clk 0:03:46.7]} 20. Bh5 {[%clk 0:04:17.2]} 20... g6 {[%clk
0:03:44.1]} 21. Bf3 {[%clk 0:04:12.9]} 21... Nc3+ {[%clk 0:03:31.7]} 22. Kc1
{[%clk 0:04:11]} 22... R8a7 {[%clk 0:03:17.4]} 23. h5 {[%clk 0:04:09.2]} 23...
e5 {[%clk 0:02:54.3]} 24. hxg6 {[%clk 0:04:02.6]} 24... fxg6 {[%clk 0:02:50.3]}
25. Nh3 {[%clk 0:03:44.1]} 25... exf4 {[%clk 0:02:44.2]} 26. Nxf4 {[%clk
0:03:42.6]} 26... Ng4 {[%clk 0:02:38.8]} 27. Kd2 {[%clk 0:03:39.3]} 27... Bg5
{[%clk 0:02:36.3]} 28. Ne2 {[%clk 0:03:38]} 28... Nxe2 {[%clk 0:02:09]} 29. Kxe2
{[%clk 0:03:21.4]} 29... Bxf4 {[%clk 0:02:03.7]} 30. Bxg4 {[%clk 0:03:20.3]}
30... Bxg4+ {[%clk 0:02:01.7]} 31. Kf2 {[%clk 0:03:19.4]} 31... Rf7 {[%clk
0:01:52.4]} 32. Kg1 {[%clk 0:03:18.2]} 32... Be3+ {[%clk 0:01:51.1]} 33. Kh2
{[%clk 0:03:17.1]} 33... Rxf1 {[%clk 0:01:45.5]} 34. Rxf1 {[%clk 0:03:17]} 34...
Ra2 {[%clk 0:01:43.9]} 0-1

[Event "Live Chess"]
[Site "Chess.com"]
[Date "2024.06.02"]
[Round "-"]
[White "StoreySniper"]
[Black "Victor_Bondar"]
[Result "1-0"]
[WhiteElo "2497"]
[BlackElo "1458"]
[TimeControl "300"]
[EndTime "5:22:20 PDT"]
[Termination "StoreySniper won on time"]

1. e4 {[%clk 0:04:56.5]} 1... d5 {[%clk 0:04:55.2]} 2. exd5 {[%clk 0:04:54.7]}
2... Qxd5 {[%clk 0:04:53.6]} 3. Nc3 {[%clk 0:04:54]} 3... Qa5 {[%clk 0:04:51.1]}
4. Bc4 {[%clk 0:04:53]} 4... Nf6 {[%clk 0:04:50.5]} 5. d3 {[%clk 0:04:52.2]}
5... Bg4 {[%clk 0:04:49.1]} 6. f3 {[%clk 0:04:50.3]} 6... Bh5 {[%clk 0:04:47.6]}
7. Bd2 {[%clk 0:04:48.8]} 7... c6 {[%clk 0:04:46.2]} 8. Qe2 {[%clk 0:04:46.5]}
8... e6 {[%clk 0:04:45.2]} 9. g4 {[%clk 0:04:44.8]} 9... Bg6 {[%clk 0:04:43.2]}
10. h4 {[%clk 0:04:43.3]} 10... h5 {[%clk 0:04:30.1]} 11. g5 {[%clk 0:04:42.1]}
11... Nfd7 {[%clk 0:04:17]} 12. Bxe6 {[%clk 0:04:39.3]} 12... Qe5 {[%clk
0:04:08.8]} 13. Qxe5 {[%clk 0:04:35.1]} 13... Nxe5 {[%clk 0:04:05.9]} 14. Bc8
{[%clk 0:04:34.1]} 14... Nbd7 {[%clk 0:03:49.2]} 15. Bxb7 {[%clk 0:04:33]} 15...
Rb8 {[%clk 0:03:48.3]} 16. Ba6 {[%clk 0:04:30.3]} 16... Rb6 {[%clk 0:03:41.7]}
17. Bc8 {[%clk 0:04:23]} 17... Rxb2 {[%clk 0:03:37.1]} 18. f4 {[%clk 0:04:13.6]}
18... Ng4 {[%clk 0:03:23]} 19. O-O-O {[%clk 0:04:08.5]} 19... Ba3 {[%clk
0:03:12.6]} 20. Re1+ {[%clk 0:04:00.2]} 20... Kd8 {[%clk 0:02:50.8]} 21. Bxd7
{[%clk 0:03:56.2]} 21... Kxd7 {[%clk 0:02:46.9]} 22. Nh3 {[%clk 0:03:40.3]}
22... Rhb8 {[%clk 0:02:24]} 23. Kd1 {[%clk 0:03:39.3]} 23... Bb4 {[%clk
0:02:17.6]} 24. Ne4 {[%clk 0:03:27.3]} 24... Rxa2 {[%clk 0:02:12.4]} 25. Bxb4
{[%clk 0:03:22]} 25... Bxe4 {[%clk 0:02:08]} 26. Rxe4 {[%clk 0:03:12.8]} 26...
Ra1+ {[%clk 0:02:04]} 27. Kd2 {[%clk 0:03:09.6]} 27... Rxh1 {[%clk 0:02:02.8]}
28. Re7+ {[%clk 0:03:00.8]} 28... Kd8 {[%clk 0:01:58.5]} 29. Bd6 {[%clk
0:02:55.2]} 29... Rb5 {[%clk 0:01:58]} 30. g6 {[%clk 0:02:49.6]} 30... Rh2+
{[%clk 0:01:54.3]} 31. Kc3 {[%clk 0:02:47.2]} 31... f6 {[%clk 0:01:50.8]} 32.
Rxg7 {[%clk 0:02:27.5]} 32... Ne3 {[%clk 0:01:46.2]} 33. Be7+ {[%clk 0:01:49.1]}
33... Ke8 {[%clk 0:01:40]} 34. Bxf6 {[%clk 0:01:49]} 34... Rxc2+ {[%clk
0:01:32.5]} 35. Kd4 {[%clk 0:01:48.1]} 35... Ng4 {[%clk 0:01:21.1]} 36. Re7+
{[%clk 0:01:32.3]} 36... Kd8 {[%clk 0:01:09.4]} 37. Re2+ {[%clk 0:01:27]} 37...
Kd7 {[%clk 0:01:06.3]} 38. Rxc2 {[%clk 0:01:25.1]} 38... Nxf6 {[%clk 0:01:02.8]}
39. Rc5 {[%clk 0:01:03.8]} 39... Rb4+ {[%clk 0:00:53]} 40. Kc3 {[%clk
0:00:56.9]} 40... Rb5 {[%clk 0:00:40.9]} 41. Rg5 {[%clk 0:00:42.8]} 41... Ke6
{[%clk 0:00:36.4]} 42. g7 {[%clk 0:00:41.3]} 42... Rxg5 {[%clk 0:00:28.5]} 43.
hxg5 {[%clk 0:00:37.5]} 43... Ng8 {[%clk 0:00:16.5]} 44. Nf2 {[%clk 0:00:35.9]}
44... Ne7 {[%clk 0:00:10.7]} 45. Ne4 {[%clk 0:00:32.8]} 45... h4 {[%clk
0:00:07]} 46. g6 {[%clk 0:00:28.5]} 46... Kf5 {[%clk 0:00:01.5]} 47. Kd4 {[%clk
0:00:17.7]} 1-0

[Event "Live Chess"]
[Site "Chess.com"]
[Date "2024.06.02"]
[Round "-"]
[White "Colm_Buckley"]
[Black "MaksymYurii"]
[Result "1-0"]
[WhiteElo "1875"]
[BlackElo "999"]
[TimeControl "300"]
[EndTime "5:22:30 PDT"]
[Termination "Colm_Buckley won by checkmate"]

1. d4 {[%clk 0:04:58.1]} 1... d5 {[%clk 0:04:56.4]} 2. c4 {[%clk 0:04:57.4]}
2... dxc4 {[%clk 0:04:51]} 3. Nc3 {[%clk 0:04:56.1]} 3... Nf6 {[%clk 0:04:46]}
4. e3 {[%clk 0:04:52.5]} 4... Nbd7 {[%clk 0:04:44]} 5. Bxc4 {[%clk 0:04:51]}
5... e6 {[%clk 0:04:42.5]} 6. Nf3 {[%clk 0:04:49.1]} 6... Bb4 {[%clk 0:04:38.9]}
7. O-O {[%clk 0:04:45.6]} 7... O-O {[%clk 0:04:37.1]} 8. Bd2 {[%clk 0:04:40.4]}
8... Bd6 {[%clk 0:04:33]} 9. Rc1 {[%clk 0:04:34.3]} 9... e5 {[%clk 0:04:26.8]}
10. dxe5 {[%clk 0:04:31.6]} 10... Nxe5 {[%clk 0:04:25.9]} 11. Nxe5 {[%clk
0:04:28.8]} 11... Bxe5 {[%clk 0:04:24.9]} 12. f4 {[%clk 0:04:18.3]} 12... Bxc3
{[%clk 0:04:19.7]} 13. Bxc3 {[%clk 0:04:14.5]} 13... Qxd1 {[%clk 0:04:09.9]} 14.
Rfxd1 {[%clk 0:04:11.7]} 14... Bg4 {[%clk 0:04:07.4]} 15. Rd2 {[%clk 0:04:07]}
15... Ne4 {[%clk 0:04:02]} 16. Rd4 {[%clk 0:03:57.6]} 16... Nxc3 {[%clk
0:03:56]} 17. Rxc3 {[%clk 0:03:55.8]} 17... c6 {[%clk 0:03:51.2]} 18. Rcd3
{[%clk 0:03:50.8]} 18... b6 {[%clk 0:03:47.8]} 19. Kf2 {[%clk 0:03:44.5]} 19...
c5 {[%clk 0:03:45.9]} 20. Rd6 {[%clk 0:03:41.8]} 20... Bf5 {[%clk 0:03:21.5]}
21. Rd2 {[%clk 0:03:39.1]} 21... Rab8 {[%clk 0:02:54.2]} 22. Bb5 {[%clk
0:03:25.3]} 22... a5 {[%clk 0:02:47.5]} 23. Kf3 {[%clk 0:03:14.8]} 23... Be6
{[%clk 0:02:42.4]} 24. b3 {[%clk 0:02:59.9]} 24... Bf5 {[%clk 0:02:31.2]} 25. e4
{[%clk 0:02:56]} 25... Bg6 {[%clk 0:02:27.7]} 26. f5 {[%clk 0:02:48.8]} 26...
Bh5+ {[%clk 0:02:23.5]} 27. g4 {[%clk 0:02:46.8]} 27... Bg6 {[%clk 0:02:12.3]}
28. Rd7 {[%clk 0:02:37.9]} 28... h6 {[%clk 0:01:55.7]} 29. fxg6 {[%clk
0:02:35.5]} 29... fxg6+ {[%clk 0:01:53.9]} 30. Kg3 {[%clk 0:02:28.9]} 30... g5
{[%clk 0:01:51.6]} 31. Re7 {[%clk 0:02:16]} 31... Kh8 {[%clk 0:01:40.5]} 32.
Rdd7 {[%clk 0:02:13.3]} 32... Rf4 {[%clk 0:00:52.4]} 33. Rxg7 {[%clk 0:02:07.4]}
33... Rxe4 {[%clk 0:00:40.3]} 34. Rh7+ {[%clk 0:02:03]} 34... Kg8 {[%clk
0:00:38]} 35. Bc4+ {[%clk 0:01:59.9]} 35... Kf8 {[%clk 0:00:26.7]} 36. Rh8#
{[%clk 0:01:55.3]} 1-0